bitfinex/quotes_SOLUSD_20241111
["timestamp","ask_amount","ask_price","bid_price","bid_amount"]
[1731348486933,0.1,218.79,218.61,16.1604]
[1731348487250,0.1,218.79,218.61,0.2]
[1731348487443,39.105784,218.77,218.61,0.2]
[1731348487630,0.1,218.74,218.61,0.2]
[1731348488235,4.1144,218.75,218.61,0.2]
[1731348488547,23.876884,218.74,218.61,0.2]
[1731348488851,0.1,218.71,218.54,0.2]
[1731348489232,0.1,218.73,218.54,0.2]
[1731348489435,23.776884,218.74,218.54,28.72827868]
[1731348489631,19.3429,218.77,218.54,28.72827868]
[1731348489837,23.776884,218.76,218.58,28.52827868]
[1731348490235,23.776884,218.76,218.59,23.776884]
[1731348490441,23.776884,218.76,218.59,23.976884]
[1731348490646,0.2,218.75,218.59,0.2]
[1731348490846,0.2,218.72,218.54,0.2]
[1731348491043,6.4631,218.71,218.54,0.2]
[1731348491256,23.776884,218.7,218.54,0.2]
[1731348491451,23.776884,218.68,218.54,0.2]
[1731348491756,23.776884,218.7,218.54,0.2]
[1731348492754,23.876884,218.7,218.54,0.2]
[1731348492941,23.976884,218.7,218.54,0.2]
[1731348493654,4.1154,218.69,218.54,0.2]
[1731348493839,23.776884,218.68,218.54,0.2]
[1731348494042,23.776884,218.7,218.54,0.2]
[1731348494833,6.4631,218.71,218.55,23.776884]
[1731348495545,21.4914,218.77,218.6,23.776884]
[1731348495754,21.4914,218.77,218.6,23.976884]
[1731348496069,6.2625,218.84,218.63,28.52827868]
[1731348496240,6.2625,218.84,218.69,28.52827868]
[1731348496442,6.2625,218.84,218.7,23.776884]
[1731348496747,6.2625,218.84,218.69,0.2]
[1731348496939,6.2625,218.84,218.7,23.776884]
[1731348497147,15.2172,218.88,218.74,28.52827868]
[1731348497465,0.1,218.85,218.74,0.2]
[1731348497961,4.2125,218.85,218.74,0.2]
[1731348498667,27.889484,218.84,218.74,0.2]
[1731348499668,23.776884,218.84,218.74,0.2]
[1731348499841,23.776884,218.86,218.74,0.2]
[1731348500249,15.2172,218.88,218.74,0.2]
[1731348500761,19.3291,218.88,218.74,0.2]
[1731348501671,23.876884,218.87,218.74,0.2]
[1731348501968,0.1,218.85,218.74,0.2]
[1731348503060,23.776884,218.83,218.74,0.2]
[1731348504464,27.889784,218.83,218.74,0.2]
[1731348504665,0.1,218.82,218.74,0.2]
[1731348504863,27.889784,218.83,218.74,0.2]
[1731348505366,4.1131,218.81,218.74,0.2]
[1731348505549,23.776884,218.8,218.74,0.2]
[1731348505950,0.1,218.76,218.61,0.2]
[1731348506349,6.4827,218.79,218.61,0.2]
[1731348506650,6.4827,218.79,218.65,28.52827868]
[1731348508565,4.1125,218.85,218.67,28.52827868]
[1731348508743,6.4827,218.86,218.67,28.72827868]
[1731348508944,6.4827,218.86,218.67,15.4901]
[1731348509147,0.1,218.83,218.67,0.2]
[1731348509345,0.1,218.81,218.67,0.2]
[1731348509550,0.1,218.79,218.67,0.2]
[1731348509853,0.1,218.81,218.67,0.2]
[1731348510040,23.776884,218.76,218.67,0.2]
[1731348510563,4.2125,218.85,218.67,0.2]
[1731348510865,19.3292,218.88,218.7,28.52827868]
[1731348511063,15.15004356,218.91,218.74,28.52827868]
[1731348511360,6.5199,218.91,218.74,28.72827868]
[1731348511656,6.5199,218.91,218.74,0.2]
[1731348511657,10.6312,218.91,218.74,0.2]
[1731348512255,23.776884,218.9,218.74,0.2]
[1731348512647,10.6312,218.91,218.74,0.2]
[1731348512970,6.5199,218.91,218.75,28.52827868]
[1731348513173,10.6312,218.91,218.75,28.52827868]
[1731348514160,23.776884,218.9,218.74,0.2]
[1731348514351,27.888384,218.9,218.74,0.2]
[1731348515252,0.1,218.88,218.74,0.2]
[1731348515561,23.776884,218.87,218.74,0.2]
[1731348515778,23.776884,218.89,218.74,0.2]
[1731348516860,4.1118,218.88,218.74,0.2]
[1731348517162,23.776884,218.87,218.74,0.2]
[1731348517954,27.888884,218.87,218.74,0.2]
[1731348518449,23.776884,218.87,218.74,0.2]
[1731348518756,23.776884,218.88,218.74,0.2]
[1731348519558,4.112,218.87,218.74,0.2]
[1731348520659,23.876884,218.9,218.74,0.2]
[1731348520660,23.776884,218.88,218.74,0.2]
[1731348521042,23.876884,218.88,218.74,0.2]
[1731348521243,23.776884,218.88,218.74,0.2]
[1731348521777,4.112,218.87,218.74,0.2]
[1731348522566,23.776884,218.88,218.74,0.2]
[1731348522773,27.988284,218.9,218.74,0.2]
[1731348523367,27.888284,218.9,218.74,0.2]
[1731348524764,27.988284,218.9,218.74,0.2]
[1731348525162,0.1,218.87,218.74,0.2]
[1731348525474,4.1122,218.86,218.74,0.2]
[1731348526170,4.1116,218.89,218.74,0.2]
[1731348526361,0.1,218.86,218.74,0.2]
[1731348526572,0.1,218.83,218.68,6.3989]
[1731348526957,23.776884,218.79,218.68,0.2]
[1731348527454,6.3531,218.93,218.7,28.52827868]
[1731348527659,10.4641,218.93,218.72,28.52827868]
[1731348528375,10.4641,218.93,218.73,23.776884]
[1731348528774,10.4641,218.93,218.74,28.52827868]
[1731348529085,4.1112,218.92,218.73,23.776884]
[1731348530259,4.1112,218.92,218.75,23.776884]
[1731348530459,4.1112,218.92,218.75,23.976884]
[1731348530660,6.3531,218.93,218.75,23.976884]
[1731348530880,10.464,218.93,218.75,23.976884]
[1731348531551,23.776884,218.92,218.75,23.976884]
[1731348532071,27.887984,218.92,218.75,23.976884]
[1731348532757,0.1,218.9,218.75,0.2]
[1731348533175,0.2,218.88,218.75,0.2]
[1731348533374,5.48267947,218.87,218.75,0.2]
[1731348533684,5.48267947,218.87,218.69,21.5957]
[1731348533685,23.776884,218.86,218.69,21.7957]
[1731348533863,5.64082182,218.85,218.69,21.7957]
[1731348534064,4.1127,218.83,218.69,21.7957]
[1731348534266,23.776884,218.82,218.69,21.7957]
[1731348535073,27.889384,218.84,218.69,21.7957]
[1731348535265,5.48267947,218.85,218.7,23.776884]
[1731348535575,23.776884,218.89,218.7,23.776884]
[1731348535761,29.41770582,218.89,218.7,23.776884]
[1731348536767,23.776884,218.87,218.7,23.776884]
[1731348537161,4.1116,218.9,218.7,23.776884]
[1731348537373,4.1116,218.9,218.7,23.976884]
[1731348537562,5.64082182,218.89,218.7,23.976884]
[1731348538378,9.75262182,218.89,218.7,23.976884]
[1731348539294,11.12350129,218.89,218.72,23.776884]
[1731348539581,5.64082182,218.89,218.72,23.776884]
[1731348539765,23.776884,218.9,218.72,23.776884]
[1731348540358,23.776884,218.9,218.73,28.52827868]
[1731348540689,6.3531,218.93,218.7,23.976884]
[1731348540690,4.111,218.93,218.78,23.776884]
[1731348540874,4.111,218.93,218.78,23.976884]
[1731348541069,4.1101,218.97,218.78,23.976884]
[1731348541380,0.1,218.96,218.78,23.976884]
[1731348542088,0.1,218.92,218.78,0.2]
[1731348542379,23.876884,218.9,218.78,0.2]
[1731348542581,10.03408848,218.89,218.78,0.2]
[1731348542876,23.876884,218.88,218.78,0.2]
[1731348543265,29.79937248,218.88,218.78,0.2]
[1731348543475,23.876884,218.88,218.78,0.2]
[1731348544694,23.776884,218.86,218.78,0.2]
[1731348545381,23.776884,218.88,218.78,0.2]
[1731348545883,0.1,218.86,218.78,0.2]
[1731348546087,0.1,218.86,218.75,15.5041]
[1731348546088,5.92248848,218.85,218.72,0.2]
[1731348546377,0.1,218.82,218.7,15.3087]
[1731348546588,23.776884,218.8,218.7,0.2]
[1731348546790,23.776884,218.8,218.67,6.2408]
[1731348547363,29.35956347,218.8,218.67,6.2408]
[1731348547575,23.876884,218.78,218.64,15.3087]
[1731348547764,23.776884,218.76,218.64,15.3087]
[1731348547976,11.40516795,218.75,218.64,15.3087]
[1731348548178,23.776884,218.74,218.64,15.3087]
[1731348548576,23.776884,218.72,218.64,15.3087]
[1731348549470,18.288619,218.72,218.64,15.3087]
[1731348549678,23.776884,218.74,218.64,15.3087]
[1731348549881,23.776884,218.76,218.64,15.3087]
[1731348550184,4.1137,218.78,218.64,15.3087]
[1731348550387,10.281,218.85,218.64,15.3087]
[1731348550388,4.1125,218.84,218.64,15.3087]
[1731348550684,4.114,218.76,218.64,15.3087]
[1731348550890,4.1131,218.82,218.64,15.3087]
[1731348551189,18.282375,218.79,218.64,15.3087]
[1731348551967,4.1128,218.83,218.67,28.52827868]
[1731348552189,18.280404,218.81,218.67,0.2]
[1731348552873,4.1133,218.8,218.67,0.2]
[1731348553072,18.280404,218.81,218.67,0.2]
[1731348553478,6.1811,218.87,218.68,6.6062]
[1731348553479,4.1122,218.86,218.68,6.6062]
[1731348553682,22.391837,218.86,218.68,6.8062]
[1731348554674,23.776884,218.85,218.68,6.8062]
[1731348554972,23.776884,218.83,218.68,6.8062]
[1731348555476,18.279637,218.86,218.69,68.68476268]
[1731348555672,18.279637,218.86,218.69,68.88476268]
[1731348556087,4.1118,218.89,218.72,23.776884]
[1731348556295,22.387608,218.89,218.69,45.10787868]
[1731348556487,32.766708,218.89,218.69,16.5796]
[1731348556694,0.1,218.86,218.69,16.5796]
[1731348556989,4.1121,218.87,218.7,23.776884]
[1731348557209,4.1121,218.87,218.69,16.5796]
[1731348557874,4.1121,218.87,218.7,23.776884]
[1731348558080,18.275808,218.89,218.71,28.52827868]
[1731348558290,22.387508,218.89,218.71,28.52827868]
[1731348558499,22.387508,218.89,218.7,23.776884]
[1731348558877,23.776884,218.88,218.7,23.776884]
[1731348559495,27.888784,218.88,218.7,23.776884]
[1731348560383,23.776884,218.88,218.7,23.776884]
[1731348560898,27.888684,218.88,218.7,23.976884]
[1731348562995,27.888684,218.88,218.7,0.2]
[1731348567895,27.889084,218.86,218.7,0.2]
[1731348570484,6.1934,218.87,218.7,0.2]
[1731348570694,22.387408,218.89,218.7,52.50516268]
[1731348571086,22.387408,218.89,218.7,23.976884]
[1731348571288,22.387408,218.89,218.7,52.50516268]
[1731348571996,4.112,218.87,218.7,23.976884]
[1731348572500,23.776884,218.88,218.7,52.50516268]
[1731348572706,6.3997,218.92,218.74,28.52827868]
[1731348573014,6.3997,218.92,218.75,23.776884]
[1731348573192,22.3394,218.92,218.75,23.776884]
[1731348573395,4.1105,218.96,218.78,28.52827868]
[1731348573686,4.1105,218.96,218.79,23.776884]
[1731348573884,6.0942,218.97,218.79,23.976884]
[1731348574124,10.2044,218.97,218.79,23.976884]
[1731348574307,10.2044,218.97,218.79,0.2]
[1731348574994,23.776884,218.96,218.79,0.2]
[1731348575197,10.2044,218.97,218.79,0.2]
[1731348575596,10.2044,218.97,218.8,28.52827868]
[1731348575999,10.2044,218.97,218.79,0.2]
[1731348576410,23.776884,218.96,218.79,0.2]
[1731348577507,23.776884,218.94,218.79,0.2]
[1731348578912,27.887184,218.96,218.79,0.2]
[1731348579311,27.887184,218.96,218.79,23.976884]
[1731348579612,27.887184,218.96,218.79,0.2]
[1731348580003,38.262984,218.96,218.79,0.2]
[1731348580207,0.1,218.94,218.79,0.2]
[1731348580788,38.262984,218.96,218.79,0.2]
[1731348581015,4.1109,218.93,218.79,0.2]
[1731348581213,23.776884,218.92,218.79,0.2]
[1731348582111,4.1112,218.91,218.79,0.2]
[1731348582309,23.776884,218.9,218.79,0.2]
[1731348582512,4.1105,218.95,218.79,0.2]
[1731348582698,23.776884,218.94,218.79,0.2]
[1731348582896,0.1,218.93,218.79,0.2]
[1731348584213,23.776884,218.91,218.79,0.2]
[1731348585321,23.776884,218.89,218.79,0.2]
[1731348586021,23.776884,218.91,218.8,16.2074]
[1731348586231,23.776884,218.91,218.82,16.2074]
[1731348586399,16.2074,219.07,218.92,0.2]
[1731348586599,6.5539,219.09,218.92,0.2]
[1731348587112,10.6618,219.09,218.92,0.2]
[1731348587620,6.5539,219.09,218.92,23.976884]
[1731348587825,24.810526,219.15,218.96,23.776884]
[1731348588012,6.5539,219.15,218.96,23.976884]
[1731348589412,23.776884,219.14,218.96,23.976884]
[1731348590922,23.776884,219.14,218.97,28.52827868]
[1731348591398,27.883884,219.14,218.96,23.976884]
[1731348592417,27.883884,219.14,218.96,0.2]
[1731348592716,6.5539,219.15,218.97,28.52827868]
[1731348592917,10.6607,219.15,218.98,23.776884]
[1731348593424,4.1064,219.17,218.98,23.976884]
[1731348594924,23.776884,219.14,218.98,23.976884]
[1731348596307,28.340184,219.14,218.98,0.2]
[1731348600602,28.340584,219.12,218.98,0.2]
[1731348601033,23.776884,219.12,218.98,0.2]
[1731348602025,24.686599,219.18,219.0,28.52827868]
[1731348602243,24.686599,219.18,218.99,23.776884]
[1731348602244,29.249099,219.18,218.99,23.776884]
[1731348602531,29.249099,219.18,218.98,0.2]
[1731348602709,29.349099,219.18,218.98,0.2]
[1731348603421,23.776884,219.17,218.98,0.2]
[1731348603614,23.776884,219.15,218.98,0.2]
[1731348604322,24.686599,219.18,218.99,23.776884]
[1731348604631,29.249099,219.18,219.0,28.52827868]
[1731348604826,29.249099,219.18,219.0,28.72827868]
[1731348606632,23.776884,219.17,219.01,23.776884]
[1731348606929,10.9948,219.18,219.01,23.976884]
[1731348607228,10.9948,219.18,219.01,0.2]
[1731348608325,23.776884,219.15,219.01,0.2]
[1731348609428,23.776884,219.13,219.01,0.2]
[1731348611738,6.4323,219.18,219.02,28.52827868]
[1731348611913,6.4323,219.18,219.01,0.2]
[1731348613124,23.776884,219.17,219.01,0.2]
[1731348613530,23.776884,219.17,219.02,23.776884]
[1731348613733,23.776884,219.17,219.03,16.5791]
[1731348615553,28.339584,219.17,219.03,16.5791]
[1731348616137,23.776884,219.17,219.03,16.5791]
[1731348617244,28.339584,219.17,219.01,0.2]
[1731348618432,39.746184,219.17,219.01,0.2]
[1731348619239,28.339584,219.17,219.01,0.2]
[1731348621528,39.746184,219.17,219.01,0.2]
[1731348622441,28.339584,219.17,219.01,0.2]
[1731348624845,39.746184,219.17,219.01,0.2]
[1731348629545,23.776884,219.11,218.93,0.2]
[1731348629739,6.2131,219.08,218.93,0.2]
[1731348629941,23.776884,219.07,218.93,0.2]
[1731348630345,23.776884,219.05,218.93,0.2]
[1731348630534,23.776884,219.05,218.82,51.01697868]
[1731348630742,23.776884,219.05,218.82,22.4887]
[1731348630943,23.776884,219.05,218.82,51.01697868]
[1731348631456,4.5653,219.04,218.83,23.776884]
[1731348631761,23.776884,219.03,218.83,23.776884]
[1731348631931,23.776884,219.03,218.84,28.52827868]
[1731348632240,23.776884,219.03,218.85,28.52827868]
[1731348632833,23.776884,219.03,218.84,0.2]
[1731348632834,23.776884,219.03,218.84,28.72827868]
[1731348633237,23.776884,219.03,218.85,23.776884]
[1731348634234,23.776884,219.05,218.85,23.776884]
[1731348634537,28.341984,219.05,218.84,28.72827868]
[1731348636744,28.341984,219.05,218.84,0.2]
[1731348636951,28.342384,219.03,218.84,0.2]
[1731348637154,28.342384,219.03,218.84,28.72827868]
[1731348638159,28.342384,219.03,218.84,0.2]
[1731348638656,23.776884,219.03,218.85,23.776884]
[1731348639437,23.776884,219.03,218.86,28.52827868]
[1731348639755,6.3704,219.04,218.89,23.776884]
[1731348639938,6.3704,219.04,218.89,23.976884]
[1731348640738,46.576084,219.03,218.89,0.2]
[1731348641855,6.2077,219.0,218.89,0.2]
[1731348642161,23.776884,218.98,218.89,0.2]
[1731348642946,23.776884,218.96,218.89,0.2]
[1731348644059,28.343884,218.96,218.89,0.2]
[1731348646053,23.776884,218.98,218.89,0.2]
[1731348648252,4.1101,218.97,218.89,0.2]
[1731348648454,23.776884,218.96,218.89,0.2]
[1731348649461,4.1103,218.96,218.89,0.2]
[1731348649662,27.886984,218.98,218.89,0.2]
[1731348651347,46.154073,218.98,218.89,0.2]
[1731348651548,42.043973,218.98,218.89,0.2]
[1731348651767,23.776884,218.98,218.89,0.2]
[1731348652272,34.856499,218.99,218.89,0.2]
[1731348652442,6.647,219.08,218.89,44.30097868]
[1731348652643,6.647,219.08,218.9,23.876884]
[1731348652868,6.647,219.08,218.93,23.776884]
[1731348653166,6.647,219.08,218.9,28.72827868]
[1731348653463,10.7552,219.08,218.9,28.72827868]
[1731348654141,10.7552,219.08,218.9,0.2]
[1731348654759,10.2552,219.08,218.9,0.2]
[1731348655160,15.4155,219.07,218.9,0.2]
[1731348655361,0.1,219.06,218.9,0.2]
[1731348655566,23.776884,219.06,218.9,0.2]
[1731348655949,23.776884,219.04,218.9,0.2]
[1731348656962,28.341784,219.06,218.9,0.2]
[1731348657756,6.6401,219.05,218.9,0.2]
[1731348657949,23.776884,219.04,218.9,0.2]
[1731348658875,23.776884,219.02,218.9,0.2]
[1731348659560,16.3965,219.01,218.9,0.2]
[1731348659871,23.776884,219.0,218.9,0.2]
[1731348660368,16.3965,219.01,218.9,0.2]
[1731348661277,20.9625,219.01,218.9,0.2]
[1731348661671,23.776884,219.0,218.9,0.2]
[1731348662179,28.343084,219.0,218.9,0.2]
[1731348662365,23.776884,219.0,218.9,0.2]
[1731348663458,28.343084,219.0,218.9,0.2]
[1731348664072,23.776884,219.0,218.9,0.2]
[1731348664285,16.3965,219.01,218.9,0.2]
[1731348664876,20.9625,219.01,218.9,0.2]
[1731348665663,6.3617,219.0,218.9,0.2]
[1731348665877,20.9625,219.01,218.76,16.597]
[1731348665878,6.3617,218.96,218.76,16.597]
[1731348666079,6.3617,218.96,218.76,16.697]
[1731348666080,41.51565433,218.95,218.76,16.697]
[1731348666394,23.776884,218.91,218.7,15.8148]
[1731348666687,15.2032,218.88,218.7,15.9148]
[1731348666861,29.36572976,218.87,218.7,15.9148]
[1731348667062,34.14450009,218.87,218.7,0.1]
[1731348667388,6.5285,218.84,218.7,0.1]
[1731348667684,49.95436676,218.83,218.7,0.1]
[1731348667872,0.1,218.82,218.58,0.1]
[1731348668066,23.776884,218.8,218.58,0.1]
[1731348668371,10.97428276,218.81,218.58,0.1]
[1731348668372,23.776884,218.78,218.58,0.1]
[1731348668581,28.87343211,218.78,218.58,0.1]
[1731348668878,23.776884,218.74,218.58,0.1]
[1731348669083,23.776884,218.72,218.58,0.1]
[1731348669377,23.776884,218.7,218.46,0.1]
[1731348669783,29.17676545,218.7,218.46,28.62827868]
[1731348669987,23.776884,218.7,218.46,28.62827868]
[1731348670281,23.776884,218.68,218.46,0.1]
[1731348670462,29.17676545,218.68,218.46,0.1]
[1731348671710,23.776884,218.66,218.46,0.1]
[1731348671981,38.980084,218.67,218.46,0.1]
[1731348672181,23.776884,218.65,218.46,0.1]
[1731348672374,23.776884,218.63,218.46,0.1]
[1731348672574,29.65461865,218.63,218.41,22.0069]
[1731348672768,23.776884,218.61,218.41,22.0069]
[1731348672968,23.776884,218.59,218.41,15.9148]
[1731348673183,23.776884,218.57,218.41,15.9148]
[1731348673373,23.776884,218.55,218.41,0.1]
[1731348673568,5.39988145,218.54,218.41,0.1]
[1731348673873,23.776884,218.53,218.41,0.1]
[1731348674076,23.776884,218.53,218.36,0.1]
[1731348674077,5.39988145,218.53,218.36,0.1]
[1731348674270,29.17676545,218.52,218.36,0.1]
[1731348674585,23.776884,218.5,218.36,0.1]
[1731348674775,23.776884,218.48,218.36,0.1]
[1731348674960,23.776884,218.46,218.36,0.1]
[1731348675284,5.68154811,218.45,218.36,0.1]
[1731348675496,23.776884,218.44,218.36,0.1]
[1731348676763,29.45843211,218.44,218.36,0.1]
[1731348676968,23.776884,218.44,218.36,0.1]
[1731348677164,6.5285,218.51,218.36,0.1]
[1731348677368,23.776884,218.5,218.36,0.1]
[1731348678976,6.5285,218.51,218.36,0.1]
[1731348680174,23.776884,218.5,218.36,0.1]
[1731348680961,29.45843211,218.5,218.36,0.1]
[1731348681571,23.776884,218.48,218.36,0.1]
[1731348681785,6.397,218.58,218.38,15.0105]
[1731348681963,19.3211,218.56,218.38,15.1105]
[1731348682165,5.68154811,218.55,218.38,15.1105]
[1731348682769,20.69204811,218.55,218.38,15.1105]
[1731348683268,23.776884,218.55,218.38,15.1105]
[1731348683462,24.701419,218.58,218.38,15.1105]
[1731348683802,15.6126,218.62,218.4,28.52827868]
[1731348684089,19.7294,218.62,218.4,28.62827868]
[1731348684387,19.7294,218.62,218.4,0.1]
[1731348685188,6.14495687,218.68,218.44,28.52827868]
[1731348685373,22.411755,218.68,218.45,23.776884]
[1731348685876,9.79724811,218.68,218.45,23.776884]
[1731348686069,5.68154811,218.67,218.44,0.1]
[1731348686381,4.1159,218.66,218.44,0.1]
[1731348686589,9.79744811,218.66,218.44,0.1]
[1731348687092,5.68154811,218.65,218.44,0.1]
[1731348687269,23.776884,218.64,218.44,0.1]
[1731348687471,23.776884,218.64,218.44,28.62827868]
[1731348687672,23.776884,218.64,218.45,23.776884]
[1731348687877,23.776884,218.65,218.45,23.776884]
[1731348688395,23.776884,218.65,218.44,0.1]
[1731348688591,29.45843211,218.65,218.44,0.1]
[1731348688887,23.776884,218.63,218.44,0.1]
[1731348689688,5.68154811,218.62,218.44,0.1]
[1731348689877,23.776884,218.61,218.44,0.1]
[1731348690080,23.776884,218.59,218.44,0.1]
[1731348690281,29.45843211,218.59,218.44,0.1]
[1731348690479,23.776884,218.57,218.44,0.1]
[1731348690681,29.45843211,218.57,218.44,0.1]
[1731348691283,23.776884,218.55,218.44,0.1]
[1731348691490,5.68154811,218.54,218.44,0.1]
[1731348691787,23.776884,218.58,218.44,0.1]
[1731348692968,4.1161,218.65,218.44,0.1]
[1731348694171,23.776884,218.67,218.44,0.1]
[1731348694372,23.776884,218.65,218.44,0.1]
[1731348694993,23.776884,218.67,218.44,23.976884]
[1731348695289,23.776884,218.66,218.44,23.976884]
[1731348695991,5.68154811,218.67,218.47,6.2002]
[1731348696189,6.14495687,218.71,218.48,23.776884]
[1731348696498,9.79664811,218.71,218.48,23.976884]
[1731348696685,5.68154811,218.7,218.48,23.976884]
[1731348697490,23.776884,218.68,218.48,0.1]
[1731348697672,23.776884,218.66,218.48,0.1]
[1731348697872,5.68154811,218.65,218.48,0.1]
[1731348698067,23.776884,218.64,218.48,0.1]
[1731348698281,5.68154811,218.63,218.48,0.1]
[1731348698580,23.776884,218.62,218.47,1.3002]
[1731348698791,29.45843211,218.62,218.47,1.3002]
[1731348698968,23.776884,218.6,218.47,1.3002]
[1731348699980,23.776884,218.58,218.47,1.3002]
[1731348700178,29.45843211,218.58,218.47,1.3002]
[1731348700673,23.776884,218.56,218.47,1.3002]
[1731348700879,23.776884,218.56,218.45,15.8179]
[1731348700880,29.45843211,218.56,218.45,15.8179]
[1731348701096,23.776884,218.54,218.45,15.8179]
[1731348702582,5.68154811,218.54,218.45,15.8179]
[1731348702893,5.68154811,218.53,218.45,15.8179]
[1731348704301,23.776884,218.56,218.45,15.8179]
[1731348704477,29.45843211,218.56,218.45,15.8179]
[1731348704677,23.776884,218.54,218.45,15.8179]
[1731348706584,23.276884,218.54,218.45,15.8179]
[1731348707097,4.1177,218.57,218.45,15.8179]
[1731348707280,6.6469,218.59,218.45,15.8179]
[1731348707887,10.7642,218.59,218.45,15.8179]
[1731348708090,9.79854811,218.61,218.45,15.8179]
[1731348708276,6.1284,218.66,218.45,15.8179]
[1731348708600,11.80994811,218.66,218.45,15.8179]
[1731348708778,5.68154811,218.65,218.45,15.8179]
[1731348709287,4.1164,218.64,218.45,15.8179]
[1731348709489,23.776884,218.63,218.45,15.8179]
[1731348709683,23.776884,218.63,218.46,23.776884]
[1731348710188,33.57493211,218.63,218.46,23.776884]
[1731348711108,33.57493211,218.63,218.46,23.276884]
[1731348711899,27.893384,218.63,218.45,15.8179]
[1731348713099,23.776884,218.64,218.46,23.776884]
[1731348713477,23.776884,218.66,218.47,21.7437]
[1731348713677,23.776884,218.68,218.47,21.7437]
[1731348713889,23.776884,218.66,218.47,21.7437]
[1731348714178,29.45843211,218.66,218.47,21.7437]
[1731348714380,5.68154811,218.65,218.47,21.7437]
[1731348714691,23.776884,218.64,218.47,21.7437]
[1731348714890,5.68154811,218.63,218.47,21.7437]
[1731348715198,23.776884,218.6,218.47,21.7437]
[1731348716104,23.776884,218.63,218.47,21.7437]
[1731348716724,27.893384,218.63,218.47,21.7437]
[1731348719097,33.57493211,218.63,218.47,21.7437]
[1731348719300,27.893784,218.61,218.47,21.7437]
[1731348719495,33.57533211,218.61,218.47,21.7437]
[1731348719696,5.68154811,218.6,218.47,21.7437]
[1731348719910,23.776884,218.59,218.47,21.7437]
[1731348720202,29.45843211,218.59,218.47,21.7437]
[1731348720590,5.68154811,218.58,218.47,21.7437]
[1731348720799,23.776884,218.57,218.47,21.7437]
[1731348721001,5.68154811,218.56,218.47,21.7437]
[1731348721189,23.776884,218.55,218.47,21.7437]
[1731348721493,5.94877033,218.54,218.47,15.4217]
[1731348723299,23.776884,218.53,218.42,6.486]
[1731348723506,5.94877033,218.52,218.42,6.486]
[1731348723688,28.22043427,218.51,218.42,6.486]
[1731348723883,23.776884,218.49,218.42,6.486]
[1731348724088,23.776884,218.47,218.3,6.3013]
[1731348724286,10.81120949,218.46,218.3,6.4013]
[1731348724620,4.86243916,218.51,218.3,6.4013]
[1731348724906,29.72565433,218.5,218.3,6.4013]
[1731348725212,29.72565433,218.5,218.3,6.3013]
[1731348725393,4.86243916,218.49,218.31,23.776884]
[1731348725599,5.94877033,218.48,218.31,23.776884]
[1731348726192,5.94877033,218.48,218.32,0.1]
[1731348726390,5.94877033,218.48,218.33,15.9794]
[1731348728811,10.2927,218.6,218.35,16.4435]
[1731348729109,4.1172,218.59,218.35,16.4435]
[1731348729283,5.94877033,218.58,218.36,23.776884]
[1731348729801,5.94877033,218.58,218.38,28.52827868]
[1731348729999,6.37173465,218.62,218.41,6.5775]
[1731348730205,10.48853465,218.62,218.42,23.776884]
[1731348730704,4.1168,218.62,218.44,23.776884]